[Event "FIDE WSTC Open 65 2025"]
[Site "Prague"]
[Date "2025.02.19"]
[Round "3.48"]
[White "Andersson, Finn"]
[Black "Noone, Joe"]
[Result "0-1"]
[Annotator "NA"]
[ECO "B22"]
[WhiteElo "1835"]
[BlackElo "1934"]
[PlyCount "94"]
[EventDate "2025.02.17"]
[EventType "team-tourn"]
[EventCountry "CZE"]
[SourceTitle "playchess.com"]
[Source "ChessBase"]
[SourceQuality "1"]
[TimeControl "40/5400+30:1800+30"]

1. e4 {[%emt 0:00:03]} c5 {[%emt 0:01:50]} 2. c3 {[%emt 0:00:33]} d5 {[%emt 0:04:35]} 3. exd5 {[%emt 0:00:08]} Qxd5 {[%emt 0:00:12]} 4. d4 {[%emt 0:00:33]} Nf6 {[%emt 0:02:57]} 5. Nf3 {[%emt 0:04:43]} Bg4 {[%emt 0:07:25]} 6. Be2 {[%emt 0:03:13]} e6 {[%emt 0:11:15]} 7. Qa4+ {[%emt 0:15:20]} Nc6 {[%emt 0:18:13]} 8. O-O {[%emt 0:02:38]} Be7 {[%emt 0:05:02]} 9. Be3 {[%emt 0:06:08]} O-O {[%emt 0:06:14]} 10. dxc5 {[%emt 0:12:23]} Bxc5 {[%emt 0:01:21]} 11. Rd1 {[%emt 0:01:48]} Qh5 {[%emt 0:09:19]} 12. Bxc5 {[%emt 0:04:38]} Qxc5 {[%emt 0:00:16]} 13. Nbd2 {[%emt 0:05:17]} Rfd8 {[%emt 0:01:31]} 14. Ne4 {[%emt 0:06:43]} Nxe4 {[%emt 0:00:39]} 15. Qxe4 {[%emt 0:00:07]} Bf5 {[%emt 0:01:43]} 16. Qf4 {[%emt 0:05:04]} h6 {[%emt 0:02:23]} 17. Rxd8+ {[%emt 0:09:40]} Rxd8 {[%emt 0:00:08]} 18. Qc7 {[%emt 0:01:21]} Qe7 {[%emt 0:02:13]} 19. Qxe7 {[%emt 0:01:15]} Nxe7 {[%emt 0:00:08]} 20. Rd1 {[%emt 0:00:25]} Rxd1+ {[%emt 0:07:14]} 21. Bxd1 {[%emt 0:00:05]} Be4 {[%emt 0:01:31]} 22. Kf1 {[%emt 0:01:01]} Bd5 {[%emt 0:00:35]} 23. b3 {[%emt 0:00:53]} Kf8 {[%emt 0:01:02]} 24. Ke2 {[%emt 0:01:46]} Nf5 {[%emt 0:03:08]} 25. Kd3 {[%emt 0:02:15]} Ke7 {[%emt 0:00:16]} 26. g3 {[%emt 0:01:49]} f6 {[%emt 0:03:09]} 27. Nd4 {[%emt 0:02:02]} Nd6 {[%emt 0:00:20]} 28. Bf3 {[%emt 0:02:45]} Bxf3 {[%emt 0:01:40]} 29. Nxf3 {[%emt 0:00:05]} e5 {[%emt 0:00:32]} 30. Nd2 {[%emt 0:00:36]} f5 {[%emt 0:02:00]} 31. f3 {[%emt 0:00:27]} Ke6 {[%emt 0:00:37]} 32. c4 {[%emt 0:01:58]} g5 {[%emt 0:01:25]} 33. h3 {[%emt 0:03:10]} h5 {[%emt 0:00:52]} 34. h4 {[%emt 0:02:05]} f4 {[%emt 0:02:45]} 35. b4 {[%emt 0:02:46]} fxg3 {[%emt 0:00:45]} 36. Ke2 {[%emt 0:01:24]} gxh4 {[%emt 0:00:16]} 37. Kf1 {[%emt 0:00:17]} Kf5 {[%emt 0:01:23]} 38. Kg2 {[%emt 0:00:23]} Kf4 {[%emt 0:00:23]} 39. c5 {[%emt 0:00:40]} Nb5 {[%emt 0:01:31]} 40. a4 {[%emt 0:00:44]} Nc3 {[%emt 0:00:03]} 41. b5 {[%emt 0:30:16]} Nxa4 {[%emt 0:30:17]} 42. Ne4 {[%emt 0:00:45]} h3+ {[%emt 0:00:00]} 43. Kxh3 {[%emt 0:00:00]} Kxf3 {[%emt 0:00:00]} 44. Ng5+ {[%emt 0:00:00]} Kf2 {[%emt 0:00:00]} 45. Ne4+ {[%emt 0:00:00]} Ke3 {[%emt 0:00:00]} 46. c6 {[%emt 0:00:00]} bxc6 {[%emt 0:00:00]} 47. bxc6 {[%emt 0:00:00]} Kxe4 {[%emt 0:00:00]} 0-1

[Event "FIDE WSTC Open 65 2025"]
[Site "Prague"]
[Date "2025.02.20"]
[Round "4.1"]
[White "Garcia Palermo, Carlos Horacio"]
[Black "Nunn, John D M"]
[Result "1/2-1/2"]
[Annotator "TA"]
[ECO "E70"]
[WhiteElo "2412"]
[BlackElo "2533"]
[PlyCount "32"]
[EventDate "2025.02.17"]
[EventType "team-tourn"]
[EventCountry "CZE"]
[SourceTitle "playchess.com"]
[Source "ChessBase"]
[SourceQuality "1"]
[TimeControl "40/5400+30:1800+30"]

{[%evp 11,31,26,27,27,31,19,28,31,48,-2,1,-2,-10,0,-23,0,-24,-13,0,-6,35,18]} 1. d4 {[%emt 0:00:42]} Nf6 {[%emt 0:00:09]} 2. c4 {[%emt 0:00:26]} g6 {[%emt 0:00:08]} 3. Nc3 {[%emt 0:00:16]} Bg7 {[%emt 0:00:07]} 4. e4 {[%emt 0:00:13]} d6 {[%emt 0:00:06]} 5. Nge2 {[%emt 0:00:14]} Nbd7 {[%emt 0:00:58]} 6. Ng3 {[%emt 0:07:45]} e5 {[%emt 0:00:43]} 7. d5 {[%emt 0:00:09] E70: King's Indian: Miscellaneous lines with 4 e4, including 5 Nge2 and 5 Bd3 0-0 6 Nge2.} h5 {[%emt 0:00:12] 7...a5 is vanishing.} 8. h4 {[%emt 0:02:05]} Nh7 {[%emt 0:01:06]} 9. Nge2 $1 {[%emt 0:03:57] White has an edge.} a5 {[%emt 0:03:24]} 10. Nb5 $146 {[%emt 0:19:07]} (10. Na4 $14) (10. g3 Nc5 11. Be3 O-O 12. Bg2 Nf6 13. f3 Nfd7 14. Nb5 Nb6 15. Qc2 Ra6 16. O-O {1-0 Mukherjee,A (2430)-Guizar,C (2425) W-ch23 sf10 email 1999}) 10... Nc5 $11 {[%emt 0:10:12]} 11. Nec3 {[%emt 0:00:22]} O-O {[%emt 0:00:25]} 12. Be3 {[%emt 0:00:38]} f5 {[%emt 0:02:56]} 13. exf5 {[%emt 0:01:17]} Bxf5 {[%emt 0:00:21]} 14. Qd2 {[%emt 0:07:49]} Nf6 {[%emt 0:11:42]} 15. f3 {[%emt 0:02:04] Dodges Nfe4} Qd7 {[%emt 0:11:13]} 16. O-O-O {[%emt 0:01:19]} Rae8 {[%emt 0:02:37] Weighted Error Value: White=0.06 (flawless) /Black=0.09 (flawless)   Mistake:       	White=1     	---        Inaccurate:     	---       	Black=1      OK:         	White=3     	Black=4      Best:        	---       	Black=1      Strong:       	White=1     	---} 1/2-1/2

[Event "FIDE WSTC Open 65 2025"]
[Site "Prague"]
[Date "2025.02.20"]
[Round "4.2"]
[White "Flear, Glenn C"]
[Black "Ortega, Lexy"]
[Result "1-0"]
[Annotator "RC"]
[ECO "D10"]
[WhiteElo "2384"]
[BlackElo "2348"]
[PlyCount "33"]
[EventDate "2025.02.17"]
[EventType "team-tourn"]
[EventCountry "CZE"]
[SourceTitle "playchess.com"]
[Source "ChessBase"]
[SourceQuality "1"]
[TimeControl "40/5400+30:1800+30"]

1. d4 {[%emt 0:00:11]} d5 {[%emt 0:00:12]} 2. c4 {[%emt 0:00:11]} c6 {[%emt 0:00:02]} 3. cxd5 {[%emt 0:00:27]} cxd5 {[%emt 0:00:08]} 4. Bf4 {[%emt 0:00:07]} Nc6 {[%emt 0:00:07]} 5. e3 {[%emt 0:00:10]} Nf6 {[%emt 0:00:47]} 6. Nc3 {[%emt 0:00:15]} a6 {[%emt 0:06:47]} 7. Bd3 {[%emt 0:02:01]} Bg4 {[%emt 0:00:56]} 8. Nge2 {[%emt 0:01:29]} e6 {[%emt 0:00:56]} 9. f3 {[%emt 0:02:40]} Bh5 {[%emt 0:00:16]} 10. O-O {[%emt 0:00:30]} Bg6 {[%emt 0:02:52]} 11. Rc1 {[%emt 0:01:50]} Bd6 {[%emt 0:12:14]} 12. Na4 {[%emt 0:06:24]} e5 {[%emt 0:13:04]} 13. dxe5 {[%emt 0:04:08]} Nxe5 {[%emt 0:00:38]} 14. Bxg6 {[%emt 0:07:42]} hxg6 {[%emt 0:05:31]} 15. Qd4 {[%emt 0:05:08]} Qe7 {[%emt 0:14:50]} 16. Nb6 {[%emt 0:03:47]} Rd8 {[%emt 0:00:10]} 17. Nc8 {[%emt 0:01:13]} 1-0

[Event "FIDE WSTC Open 65 2025"]
[Site "Prague"]
[Date "2025.02.20"]
[Round "4.3"]
[White "Ceschia, Ivano"]
[Black "Kosten, Anthony C."]
[Result "1/2-1/2"]
[Annotator "RC"]
[ECO "A45"]
[WhiteElo "2205"]
[BlackElo "2372"]
[PlyCount "78"]
[EventDate "2025.02.17"]
[EventType "team-tourn"]
[EventCountry "CZE"]
[SourceTitle "playchess.com"]
[Source "ChessBase"]
[SourceQuality "1"]
[TimeControl "40/5400+30:1800+30"]

1. d4 {[%emt 0:07:11]} Nf6 {[%emt 0:00:08]} 2. Bg5 {[%emt 0:00:13]} Ne4 {[%emt 0:00:26]} 3. Bf4 {[%emt 0:00:07]} d5 {[%emt 0:00:19]} 4. e3 {[%emt 0:00:18]} Nc6 {[%emt 0:00:57]} 5. Nd2 {[%emt 0:02:23]} g5 {[%emt 0:07:49]} 6. Bg3 {[%emt 0:07:45]} Nxg3 {[%emt 0:00:23]} 7. hxg3 {[%emt 0:00:12]} e5 {[%emt 0:01:01]} 8. dxe5 {[%emt 0:09:05]} Nxe5 {[%emt 0:01:10]} 9. Ngf3 {[%emt 0:00:34]} Bg7 {[%emt 0:08:03]} 10. Nxe5 {[%emt 0:03:53]} Bxe5 {[%emt 0:00:08]} 11. c3 {[%emt 0:00:06]} c6 {[%emt 0:10:05]} 12. Qc2 {[%emt 0:08:48]} h6 {[%emt 0:02:10]} 13. Nf3 {[%emt 0:02:14]} Bg7 {[%emt 0:01:47]} 14. Nd4 {[%emt 0:04:58]} Qd6 {[%emt 0:32:43]} 15. Bd3 {[%emt 0:05:19]} Bd7 {[%emt 0:00:36]} 16. Nf5 {[%emt 0:02:40]} Bxf5 {[%emt 0:00:41]} 17. Bxf5 {[%emt 0:00:09]} a5 {[%emt 0:03:06]} 18. Rd1 {[%emt 0:08:23]} h5 {[%emt 0:05:44]} 19. O-O {[%emt 0:07:50]} h4 {[%emt 0:04:14]} 20. gxh4 {[%emt 0:00:26]} Rxh4 {[%emt 0:01:10]} 21. g3 {[%emt 0:00:16]} Rh8 {[%emt 0:03:40]} 22. Kg2 {[%emt 0:00:53]} Rd8 {[%emt 0:00:49]} 23. e4 {[%emt 0:05:11]} d4 {[%emt 0:02:07]} 24. cxd4 {[%emt 0:00:07]} Bxd4 {[%emt 0:00:25]} 25. e5 {[%emt 0:01:16]} Qd5+ {[%emt 0:02:18]} 26. Be4 {[%emt 0:00:12]} Qxa2 {[%emt 0:02:01]} 27. Bxc6+ {[%emt 0:01:15]} bxc6 {[%emt 0:05:52]} 28. Qxc6+ {[%emt 0:00:08]} Kf8 {[%emt 0:00:09]} 29. Rxd4 {[%emt 0:00:10]} Rxd4 {[%emt 0:00:14]} 30. Qc5+ {[%emt 0:00:03]} Kg7 {[%emt 0:00:30]} 31. Qxd4 {[%emt 0:00:11]} Qe6 {[%emt 0:00:07]} 32. g4 {[%emt 0:11:07]} Rb8 {[%emt 0:01:39]} 33. f3 {[%emt 0:02:30]} Rb4 {[%emt 0:01:19]} 34. Qc3 {[%emt 0:00:44]} Qb3 {[%emt 0:00:38]} 35. e6+ {[%emt 0:02:55]} Qxc3 {[%emt 0:00:12]} 36. bxc3 {[%emt 0:00:04]} Rb2+ {[%emt 0:00:39]} 37. Kg3 {[%emt 0:03:31]} fxe6 {[%emt 0:00:08]} 38. Ra1 {[%emt 0:00:52]} Rb5 {[%emt 0:00:12]} 39. Kf2 {[%emt 0:02:10]} Re5 {[%emt 0:01:25]} 1/2-1/2

[Event "FIDE WSTC Open 65 2025"]
[Site "Prague"]
[Date "2025.02.20"]
[Round "4.4"]
[White "Large, Peter G"]
[Black "Cocozza, Mario"]
[Result "1/2-1/2"]
[Annotator "ChessBase"]
[ECO "A45"]
[WhiteElo "2314"]
[BlackElo "2154"]
[PlyCount "39"]
[EventDate "2025.02.17"]
[EventType "team-tourn"]
[EventCountry "CZE"]
[SourceTitle "playchess.com"]
[Source "ChessBase"]
[SourceQuality "1"]
[TimeControl "40/5400+30:1800+30"]

1. d4 {[%emt 0:00:30]} Nf6 {[%emt 0:00:10]} 2. Bg5 {[%emt 0:00:28]} c5 {[%emt 0:00:26]} 3. Bxf6 {[%emt 0:00:42]} gxf6 {[%emt 0:00:07]} 4. d5 {[%emt 0:00:05]} Qb6 {[%emt 0:03:49]} 5. Nd2 {[%emt 0:02:17]} f5 {[%emt 0:05:59]} 6. Rb1 {[%emt 0:03:13]} Qg6 {[%emt 0:06:13]} 7. e3 {[%emt 0:01:44]} d6 {[%emt 0:05:44]} 8. Ne2 {[%emt 0:03:53]} Nd7 {[%emt 0:08:58]} 9. Nf4 {[%emt 0:03:31]} Qh6 {[%emt 0:00:18]} 10. Bb5 {[%emt 0:08:10]} Bg7 {[%emt 0:04:51]} 11. h4 {[%emt 0:22:35]} O-O {[%emt 0:08:33]} 12. Bxd7 {[%emt 0:01:24]} Bxd7 {[%emt 0:00:08]} 13. Nf3 {[%emt 0:00:17]} Rad8 {[%emt 0:09:13]} 14. Ng5 {[%emt 0:06:45]} Bc8 {[%emt 0:10:23]} 15. c3 {[%emt 0:07:32]} e5 {[%emt 0:04:33]} 16. Nh5 {[%emt 0:07:54]} Bh8 {[%emt 0:00:45]} 17. f4 {[%emt 0:02:40]} Rfe8 {[%emt 0:01:06]} 18. Kf2 {[%emt 0:02:41]} Kf8 {[%emt 0:01:01]} 19. Ng3 {[%emt 0:03:08]} Qg7 {[%emt 0:04:04]} 20. h5 {[%emt 0:05:54]} 1/2-1/2

[Event "FIDE WSTC Open 65 2025"]
[Site "Prague"]
[Date "2025.02.20"]
[Round "4.5"]
[White "Knaak, Rainer"]
[Black "Littlewood, Paul E"]
[Result "1/2-1/2"]
[Annotator "RC"]
[ECO "D37"]
[WhiteElo "2464"]
[BlackElo "2309"]
[PlyCount "56"]
[EventDate "2025.02.17"]
[EventType "team-tourn"]
[EventCountry "CZE"]
[SourceTitle "playchess.com"]
[Source "ChessBase"]
[SourceQuality "1"]
[TimeControl "40/5400+30:1800+30"]

1. Nf3 {[%emt 0:00:10]} d5 {[%emt 0:03:58]} 2. d4 {[%emt 0:00:44]} Nf6 {[%emt 0:00:58]} 3. c4 {[%emt 0:00:10]} e6 {[%emt 0:01:37]} 4. Nc3 {[%emt 0:00:17]} Be7 {[%emt 0:01:51]} 5. Bf4 {[%emt 0:00:23]} a6 {[%emt 0:01:08]} 6. e3 {[%emt 0:01:20]} O-O {[%emt 0:00:33]} 7. Qc2 {[%emt 0:01:49]} h6 {[%emt 0:11:51]} 8. cxd5 {[%emt 0:06:48]} exd5 {[%emt 0:00:30]} 9. Bd3 {[%emt 0:00:30]} c5 {[%emt 0:09:00]} 10. dxc5 {[%emt 0:03:16]} Nc6 {[%emt 0:00:33]} 11. a3 {[%emt 0:04:00]} Bxc5 {[%emt 0:00:36]} 12. Rd1 {[%emt 0:07:39]} Ba7 {[%emt 0:08:15]} 13. O-O {[%emt 0:01:57]} Be6 {[%emt 0:01:10]} 14. h3 {[%emt 0:13:02]} Qe7 {[%emt 0:01:46]} 15. Ne2 {[%emt 0:01:33]} Rac8 {[%emt 0:04:45]} 16. Qb1 {[%emt 0:01:42]} Rfe8 {[%emt 0:06:38]} 17. Bg3 {[%emt 0:01:36]} Nh5 {[%emt 0:10:11]} 18. Bh2 {[%emt 0:00:06]} Qf6 {[%emt 0:00:20]} 19. Nfd4 {[%emt 0:09:32]} Nxd4 {[%emt 0:01:49]} 20. exd4 {[%emt 0:00:06]} Bb8 {[%emt 0:04:45]} 21. Bxb8 {[%emt 0:07:57]} Rxb8 {[%emt 0:00:00]} 22. Qc1 {[%emt 0:03:32]} Bf5 {[%emt 0:15:51]} 23. Bxf5 {[%emt 0:01:41]} Qxf5 {[%emt 0:00:00]} 24. Ng3 {[%emt 0:02:12]} Nxg3 {[%emt 0:00:00]} 25. fxg3 {[%emt 0:06:30]} Qd7 {[%emt 0:00:00]} 26. Rf2 {[%emt 0:03:25]} Rbc8 {[%emt 0:00:00]} 27. Qd2 {[%emt 0:00:20]} Qd6 28. Rf4 {[%emt 0:02:33]} Qg6 1/2-1/2

[Event "FIDE WSTC Open 65 2025"]
[Site "Prague"]
[Date "2025.02.20"]
[Round "4.6"]
[White "Stebbings, Anthony J"]
[Black "Jussupow, Artur"]
[Result "1/2-1/2"]
[Annotator "TA"]
[ECO "D11"]
[WhiteElo "2239"]
[BlackElo "2559"]
[PlyCount "60"]
[EventDate "2025.02.17"]
[EventType "team-tourn"]
[EventCountry "CZE"]
[SourceTitle "playchess.com"]
[Source "ChessBase"]
[SourceQuality "1"]
[TimeControl "40/5400+30:1800+30"]

{[%evp 11,60,0,21,0,0,0,0,0,0,0,0,-12,6,8,10,5,19,-40,-47,-19,-29,-60,-34,-34,-34,-38,-41,-33,-34,-37,0,0,0,-35,-38,-54,-47,-66,-56,-52,-61,-64,-63,-58,-39,-26,0,-68,0,-27,0]} 1. d4 {[%emt 0:00:03]} Nf6 {[%emt 0:00:20]} 2. Nf3 {[%emt 0:00:06]} d5 {[%emt 0:02:27]} 3. g3 {[%emt 0:00:09]} c6 {[%emt 0:01:16]} 4. Bg2 {[%emt 0:00:06]} Bf5 {[%emt 0:02:27]} 5. c4 {[%emt 0:00:54]} e6 {[%emt 0:01:18]} 6. Nc3 {[%emt 0:00:13]} h6 {[%emt 0:01:42]} 7. Qb3 {[%emt 0:00:40] D11: Slav Defence: 3 Nf3 sidelines and 3...Nf6 4 e3 Bg4.} Qb6 {[%emt 0:05:23]} 8. c5 {[%emt 0:00:22]} Qxb3 {[%emt 0:05:39]} 9. axb3 {[%emt 0:00:06] The position is equal.} Be7 {[%emt 0:00:56] 9...Be7 is better than 9...Na6.} 10. b4 {[%emt 0:03:55]} O-O {[%emt 0:00:29]} 11. h3 {[%emt 0:01:09]} a6 {[%emt 0:03:53]} 12. g4 {[%emt 0:00:20]} Bh7 {[%emt 0:00:06]} 13. Bf4 {[%emt 0:00:32]} Ne4 {[%emt 0:01:54]} 14. Nd2 {[%emt 0:01:19]} (14. h4 $11) 14... Nxd2 $15 {[%emt 0:05:30]} 15. Kxd2 {[%emt 0:00:47]} Nd7 {[%emt 0:00:06][%cal Oe6e5]} 16. e4 {[%emt 0:21:06]} dxe4 {[%emt 0:03:42]} 17. Nxe4 $146 {[%emt 0:05:37]} ({Predecessor:} 17. Bxe4 Bxe4 18. Nxe4 f5 19. gxf5 Rxf5 20. Be3 Nf6 21. Ng3 Rd5 22. f4 Rd7 23. Kc2 {0-1 Ciolek,A (2316)-Saric,A (2504) AUT-chT 2223 2022 (6.4)}) 17... Bxe4 {[%emt 0:01:09]} 18. Bxe4 {[%emt 0:00:04]} Nf6 {[%emt 0:00:07]} 19. Rhe1 {[%emt 0:03:00]} Rad8 {[%emt 0:02:44]} 20. Kc3 {[%emt 0:01:54]} Nd5+ {[%emt 0:01:09]} 21. Bxd5 {[%emt 0:00:05]} Rxd5 {[%emt 0:00:05]} 22. Rad1 {[%emt 0:03:36]} Rfd8 {[%emt 0:02:12][%cal Oa6a5]} 23. Rd3 {[%emt 0:05:27] [#]} a5 $1 {[%emt 0:11:55]} 24. Re5 {[%emt 0:11:46]} (24. bxa5 Bxc5) 24... axb4+ {[%emt 0:04:36]} 25. Kc4 $1 {[%emt 0:00:06]} R5d7 {[%emt 0:03:18]} 26. Re4 {[%emt 0:03:30]} Kf8 {[%emt 0:04:06]} 27. Bg3 {[%emt 0:05:09]} Rd5 {[%emt 0:02:35][%cal Oe7c5] [#]} 28. Re5 $1 {[%emt 0:03:59]} R5d7 {[%emt 0:09:04]} 29. Re4 $1 {[%emt 0:00:51]} Rd5 {[%emt 0:02:41][%cal Oe7c5] Threatens to win with ...Bxc5!. Prevents f4} 30. Re5 $1 {[%emt 0:00:09]} R5d7 {[%emt 0:03:11] Weighted Error Value: White=0.11 (very precise) /Black=0.11 (very precise)   Mistake:       	White=1     	---        Inaccurate:     	White=2     	Black=4      OK:         	White=5     	Black=10     Best:        	White=1     	Black=1      Strong:       	White=4     	---} 1/2-1/2

[Event "FIDE WSTC Open 65 2025"]
[Site "Prague"]
[Date "2025.02.20"]
[Round "4.7"]
[White "Meister, Jakob"]
[Black "Povah, Nigel E"]
[Result "1-0"]
[Annotator "RC"]
[ECO "D44"]
[WhiteElo "2418"]
[BlackElo "2206"]
[PlyCount "79"]
[EventDate "2025.02.17"]
[EventType "team-tourn"]
[EventCountry "CZE"]
[SourceTitle "playchess.com"]
[Source "ChessBase"]
[SourceQuality "1"]
[TimeControl "40/5400+30:1800+30"]

1. d4 {[%emt 0:00:02]} d5 {[%emt 0:00:33]} 2. c4 {[%emt 0:00:12]} e6 {[%emt 0:00:40]} 3. Nc3 {[%emt 0:00:04]} Bb4 {[%emt 0:00:09]} 4. Nf3 {[%emt 0:01:26]} Nf6 {[%emt 0:00:13]} 5. Bg5 {[%emt 0:00:14]} dxc4 {[%emt 0:01:11]} 6. e3 {[%emt 0:03:37]} b5 {[%emt 0:00:58]} 7. a4 {[%emt 0:00:01]} c6 {[%emt 0:01:19]} 8. Be2 {[%emt 0:00:18]} Nbd7 {[%emt 0:10:20]} 9. O-O {[%emt 0:02:49]} Qb6 {[%emt 0:17:11]} 10. Qc2 {[%emt 0:01:30]} Bb7 {[%emt 0:09:19]} 11. e4 {[%emt 0:05:34]} h6 {[%emt 0:12:34]} 12. Be3 {[%emt 0:00:53]} Ng4 {[%emt 0:03:44]} 13. Bd2 {[%emt 0:01:16]} a6 {[%emt 0:07:54]} 14. Nxb5 {[%emt 0:18:19]} cxb5 {[%emt 0:11:33]} 15. Bxb4 {[%emt 0:01:18]} Ngf6 {[%emt 0:00:36]} 16. e5 {[%emt 0:05:44]} Nd5 {[%emt 0:02:49]} 17. Qd2 {[%emt 0:00:39]} Qc6 {[%emt 0:06:05]} 18. axb5 {[%emt 0:09:54]} axb5 {[%emt 0:00:48]} 19. Rxa8+ {[%emt 0:00:38]} Bxa8 {[%emt 0:00:01]} 20. Rc1 {[%emt 0:00:46]} N7b6 {[%emt 0:02:04]} 21. Bc5 {[%emt 0:03:01]} Kd7 {[%emt 0:03:24]} 22. Ne1 {[%emt 0:04:09]} Na4 {[%emt 0:03:38]} 23. Bd6 {[%emt 0:01:46]} Rc8 {[%emt 0:00:37]} 24. b3 {[%emt 0:04:34]} Nab6 {[%emt 0:03:20]} 25. bxc4 {[%emt 0:00:45]} bxc4 {[%emt 0:00:52]} 26. Bf1 {[%emt 0:05:52]} Qa4 {[%emt 0:00:27]} 27. Qb2 {[%emt 0:04:35]} c3 {[%emt 0:00:25]} 28. Qb1 {[%emt 0:00:22]} Qxd4 {[%emt 0:00:29]} 29. Qh7 {[%emt 0:05:56]} Qg4 {[%emt 0:00:55]} 30. Ra1 {[%emt 0:02:23]} Bb7 {[%emt 0:00:48]} 31. Ra7 {[%emt 0:02:17]} Kc6 {[%emt 0:00:30]} 32. Qb1 {[%emt 0:00:19]} Nc7 {[%emt 0:00:14]} 33. Qb3 {[%emt 0:02:12]} Qd4 {[%emt 0:00:22]} 34. Nf3 {[%emt 0:02:27]} Qd5 {[%emt 0:00:15]} 35. Qxc3+ {[%emt 0:00:25]} Kd7 {[%emt 0:00:04]} 36. Qb4 {[%emt 0:01:06]} Nca8 {[%emt 0:01:22]} 37. Bf8 {[%emt 0:03:53]} Kc6 {[%emt 0:00:45]} 38. Ra5 {[%emt 0:01:18]} Qd1 {[%emt 0:00:24]} 39. Qc5+ {[%emt 0:00:16]} Kd7 {[%emt 0:00:08]} 40. Qe7+ {[%emt 0:00:09]} 1-0

[Event "FIDE WSTC Open 65 2025"]
[Site "Prague"]
[Date "2025.02.20"]
[Round "4.8"]
[White "Snape, Ian L"]
[Black "Koehler, Gerhard"]
[Result "1/2-1/2"]
[Annotator "ChessBase"]
[ECO "A55"]
[WhiteElo "2062"]
[BlackElo "2215"]
[PlyCount "65"]
[EventDate "2025.02.17"]
[EventType "team-tourn"]
[EventCountry "CZE"]
[SourceTitle "playchess.com"]
[Source "ChessBase"]
[SourceQuality "1"]
[TimeControl "40/5400+30:1800+30"]

1. Nf3 {[%emt 0:00:04]} Nf6 {[%emt 0:00:22]} 2. c4 {[%emt 0:00:13]} d6 {[%emt 0:00:19]} 3. d4 {[%emt 0:00:08]} Nbd7 {[%emt 0:00:21]} 4. Nc3 {[%emt 0:00:14]} e5 {[%emt 0:00:03]} 5. e4 {[%emt 0:00:10]} Be7 {[%emt 0:00:45]} 6. Be2 {[%emt 0:00:15]} O-O {[%emt 0:00:25]} 7. O-O {[%emt 0:00:26]} Re8 {[%emt 0:02:36]} 8. Qc2 {[%emt 0:01:04]} c6 {[%emt 0:01:54]} 9. h3 {[%emt 0:01:25]} g6 {[%emt 0:10:21]} 10. Rd1 {[%emt 0:05:27]} Qc7 {[%emt 0:01:04]} 11. a3 {[%emt 0:04:27]} a5 {[%emt 0:04:59]} 12. Be3 {[%emt 0:03:00]} Bf8 {[%emt 0:06:13]} 13. b3 {[%emt 0:04:30]} exd4 {[%emt 0:07:02]} 14. Nxd4 {[%emt 0:01:29]} Nc5 {[%emt 0:00:17]} 15. Bf3 {[%emt 0:00:52]} Bd7 {[%emt 0:07:54]} 16. b4 {[%emt 0:02:26]} Ne6 {[%emt 0:02:41]} 17. Rac1 {[%emt 0:04:31]} Rad8 {[%emt 0:16:09]} 18. Nb3 {[%emt 0:03:33]} axb4 {[%emt 0:03:23]} 19. axb4 {[%emt 0:00:08]} Bc8 {[%emt 0:02:06]} 20. Qa2 {[%emt 0:03:15]} h6 {[%emt 0:04:15]} 21. Qd2 {[%emt 0:12:32]} Kh7 {[%emt 0:01:53]} 22. Nd4 {[%emt 0:03:21]} Bg7 {[%emt 0:02:43]} 23. Nd5 {[%emt 0:07:10]} cxd5 {[%emt 0:07:16]} 24. cxd5 {[%emt 0:00:08]} Qe7 {[%emt 0:02:54]} 25. dxe6 {[%emt 0:00:14]} Bxe6 {[%emt 0:00:03]} 26. Nb5 {[%emt 0:11:48]} Bb3 {[%emt 0:01:04]} 27. Re1 {[%emt 0:03:02]} Qd7 {[%emt 0:05:27]} 28. Qd3 {[%emt 0:02:05]} Ba4 {[%emt 0:02:13]} 29. Nc7 {[%emt 0:01:25]} Re7 {[%emt 0:00:59]} 30. Bd4 {[%emt 0:04:38]} Bc6 {[%emt 0:03:54]} 31. b5 {[%emt 0:07:32]} Qxc7 {[%emt 0:00:20]} 32. bxc6 {[%emt 0:00:08]} bxc6 {[%emt 0:01:00]} 33. Qc3 {[%emt 0:01:04]} 1/2-1/2

[Event "FIDE WSTC Open 65 2025"]
[Site "Prague"]
[Date "2025.02.20"]
[Round "4.9"]
[White "Vaisser, Anatoly"]
[Black "Hugentobler, Patrick"]
[Result "1-0"]
[Annotator "RC"]
[ECO "D35"]
[WhiteElo "2452"]
[BlackElo "2242"]
[PlyCount "75"]
[EventDate "2025.02.17"]
[EventType "team-tourn"]
[EventCountry "CZE"]
[SourceTitle "playchess.com"]
[Source "ChessBase"]
[SourceQuality "1"]
[TimeControl "40/5400+30:1800+30"]

1. d4 {[%emt 0:00:06]} d5 {[%emt 0:00:09]} 2. c4 {[%emt 0:00:20]} e6 {[%emt 0:00:10]} 3. Nc3 {[%emt 0:00:09]} Nf6 {[%emt 0:00:07]} 4. cxd5 {[%emt 0:00:20]} exd5 {[%emt 0:00:07]} 5. Bg5 {[%emt 0:00:12]} c6 {[%emt 0:00:12]} 6. e3 {[%emt 0:00:12]} h6 {[%emt 0:00:16]} 7. Bh4 {[%emt 0:01:34]} Be7 {[%emt 0:00:13]} 8. Bd3 {[%emt 0:00:20]} Nbd7 {[%emt 0:00:23]} 9. Nge2 {[%emt 0:01:44]} Nh5 {[%emt 0:00:23]} 10. Bxe7 {[%emt 0:00:14]} Qxe7 {[%emt 0:00:07]} 11. Qd2 {[%emt 0:02:37]} Nb6 {[%emt 0:00:51]} 12. f3 {[%emt 0:03:12]} Be6 {[%emt 0:05:30]} 13. O-O {[%emt 0:04:07]} O-O-O {[%emt 0:14:25]} 14. b3 {[%emt 0:07:01]} Kb8 {[%emt 0:03:04]} 15. a4 {[%emt 0:00:45]} Nc8 {[%emt 0:07:13]} 16. a5 {[%emt 0:01:51]} a6 {[%emt 0:15:01]} 17. Na4 {[%emt 0:03:45]} Nf6 {[%emt 0:00:10]} 18. Rfc1 {[%emt 0:09:02]} Na7 {[%emt 0:02:24]} 19. Nc5 {[%emt 0:01:31]} Nd7 {[%emt 0:03:05]} 20. Qb4 {[%emt 0:12:15]} Nxc5 {[%emt 0:00:33]} 21. Rxc5 {[%emt 0:04:02]} Ka8 {[%emt 0:04:30]} 22. Nc3 {[%emt 0:02:55]} Bc8 {[%emt 0:09:00]} 23. Re1 {[%emt 0:02:28]} Rd6 {[%emt 0:06:08]} 24. Na4 {[%emt 0:07:04]} Nb5 {[%emt 0:03:49]} 25. Bxb5 {[%emt 0:08:10]} axb5 {[%emt 0:00:11]} 26. Nb6+ {[%emt 0:00:34]} Ka7 {[%emt 0:00:53]} 27. e4 {[%emt 0:01:14]} Re8 {[%emt 0:09:45]} 28. Nxc8+ {[%emt 0:02:58]} Rxc8 {[%emt 0:00:01]} 29. exd5 {[%emt 0:00:18]} Qf6 {[%emt 0:00:18]} 30. Re5 {[%emt 0:01:44]} Rcd8 {[%emt 0:03:21]} 31. Qc3 {[%emt 0:01:45]} Qg6 {[%emt 0:04:58]} 32. dxc6 {[%emt 0:01:58]} Rxd4 {[%emt 0:01:05]} 33. Re2 {[%emt 0:08:06]} Rd1+ {[%emt 0:04:26]} 34. Kf2 {[%emt 0:00:37]} Qb1 {[%emt 0:00:02]} 35. c7 {[%emt 0:01:44]} Rf1+ {[%emt 0:00:19]} 36. Kg3 {[%emt 0:00:07]} Qg6+ {[%emt 0:00:34]} 37. Kh3 {[%emt 0:00:32]} f5 {[%emt 0:02:59]} 38. cxd8=Q {[%emt 0:00:37]} 1-0